bitfinex-derivatives/quotes_ETHF0:USTF0_20241023
["timestamp","ask_amount","ask_price","bid_price","bid_amount"]
[1729691668374,0.4728,2584.5,2584.4,0.38717]
[1729691668569,0.4728,2584.5,2584.1,4.0893]
[1729691668868,0.4728,2584.5,2584.3,0.38719]
[1729691668869,0.38719,2584.4,2584.3,0.38719]
[1729691669064,5.26216545,2584.5,2584.2,3.2078]
[1729691669270,0.38722,2584.2,2584.1,0.38722]
[1729691669572,4.48996462,2584.2,2584.1,0.38722]
[1729691671271,4.48995462,2584.2,2584.1,0.38722]
[1729691672979,0.38723,2584.1,2584.0,3.2078]
[1729691673282,8.28143009,2584.1,2584.0,3.2078]
[1729691673468,0.38727,2583.8,2583.5,0.38731]
[1729691673669,0.38731,2583.6,2583.5,0.38731]
[1729691673970,7.47424052,2583.7,2583.4,0.471]
[1729691674175,4.65376052,2583.6,2583.4,0.38733]
[1729691674364,0.4526,2583.5,2583.4,0.38733]
[1729691674781,4.86574319,2583.5,2583.4,0.38733]
[1729691675478,5.25307319,2583.5,2583.3,0.38734]
[1729691675672,0.38733,2583.4,2583.3,0.38734]
[1729691676174,4.74085454,2583.4,2583.3,0.38734]
[1729691677176,4.74085454,2583.4,2583.2,41.18735]
[1729691677177,0.38735,2583.3,2583.2,41.18735]
[1729691677374,7.56132454,2583.4,2583.2,41.18735]
[1729691677574,0.38735,2583.3,2583.2,41.18735]
[1729691678669,0.38735,2583.3,2582.4,3.72]
[1729691678670,8.15767063,2583.3,2582.4,3.72]
[1729691678876,3.5952,2583.0,2582.9,0.3874]
[1729691679072,3.5952,2583.0,2582.7,40.8]
[1729691679073,0.38743,2582.8,2582.7,40.8]
[1729691679379,4.67390063,2582.8,2582.7,40.8]
[1729691679778,4.28647063,2582.8,2582.6,0.447]
[1729691679972,0.38748,2582.5,2582.4,0.38747]
[1729691680279,0.38748,2582.5,2582.4,41.18747]
[1729691680671,4.45668597,2582.5,2582.4,41.18748]
[1729691681177,0.38747,2582.5,2582.4,41.18748]
[1729691681574,0.38747,2582.5,2582.4,40.8]
[1729691681575,4.59800247,2582.5,2582.4,40.8]
[1729691681988,8.47000247,2582.5,2582.4,40.8]
[1729691682282,0.38755,2582.0,2581.7,0.4432]
[1729691682480,0.38755,2582.0,2581.9,0.38756]
[1729691682781,0.38757,2581.8,2581.7,0.4432]
[1729691682973,4.4457559,2582.0,2581.8,0.38756]
[1729691683175,0.38756,2581.9,2581.8,0.38757]
[1729691683478,0.38756,2581.9,2581.8,41.18757]
[1729691683479,4.4457659,2581.9,2581.8,41.18757]
[1729691683786,0.38755,2582.0,2581.8,40.8]
[1729691683974,4.30992996,2581.9,2581.8,41.18757]
[1729691684181,4.30992996,2582.0,2581.8,40.8]
[1729691684376,0.38755,2582.0,2581.9,0.38756]
[1729691684676,0.38755,2582.0,2581.7,0.4432]
[1729691684677,4.06314965,2582.0,2581.7,0.4432]
[1729691684874,4.06314965,2582.0,2581.9,0.38754]
[1729691685072,4.06314965,2582.1,2582.0,0.38754]
[1729691685277,4.06314965,2582.1,2581.9,40.8]
[1729691685278,3.59532,2582.2,2582.1,0.38753]
[1729691685677,7.2607884,2582.2,2582.1,0.38753]
[1729691687786,3.2078,2582.2,2582.1,0.38753]
[1729691689087,7.24053287,2582.2,2581.9,40.8]
[1729691689277,7.24053287,2582.2,2582.1,0.38753]
[1729691689587,7.62805287,2582.2,2582.0,0.38753]
[1729691689785,7.62805287,2582.2,2581.9,41.18754]
[1729691689786,0.38754,2582.1,2581.9,41.18754]
[1729691689988,7.62805287,2582.2,2582.0,0.38754]
[1729691690287,3.59532,2582.2,2582.0,0.38754]
[1729691690487,4.17621204,2582.1,2582.0,0.38754]
[1729691691378,3.2078,2582.2,2582.1,0.38753]
[1729691691786,7.43940263,2582.2,2582.1,0.38753]
[1729691693584,7.82691263,2582.2,2582.1,0.38753]
[1729691693980,7.43940263,2582.2,2581.9,40.8]
[1729691694182,7.82692263,2582.2,2582.0,0.38753]
[1729691694785,7.82692263,2582.2,2581.9,40.8]
[1729691695184,7.82692263,2582.2,2582.1,0.38753]
[1729691695891,7.82691263,2582.2,2582.1,0.38753]
[1729691696284,10.85691263,2582.2,2582.1,0.38753]
[1729691696588,10.46940263,2582.2,2582.1,0.38753]
[1729691697178,10.85691263,2582.2,2582.1,0.38753]
[1729691697790,0.38753,2582.1,2582.0,0.38754]
[1729691698180,4.68581787,2582.1,2582.0,0.38754]
[1729691698994,0.38754,2582.0,2581.9,41.18756]
[1729691699181,0.38754,2582.0,2581.9,40.8]
[1729691699377,4.84724955,2582.0,2581.9,41.18756]
[1729691699683,4.45970955,2582.0,2581.9,41.18756]
[1729691700084,4.43712078,2582.1,2582.0,0.38754]
[1729691700282,6.2378,2582.2,2581.9,40.8]
[1729691700477,4.40451204,2582.1,2581.9,40.8]
[1729691700986,0.38754,2582.0,2581.9,41.18755]
[1729691701181,0.38754,2582.0,2581.9,41.18756]
[1729691701385,4.79205204,2582.0,2581.9,41.18756]
[1729691701692,4.79205204,2582.0,2581.9,0.38756]
[1729691702390,0.38756,2581.9,2581.8,41.18757]
[1729691702583,0.84966,2581.9,2581.8,41.18757]
[1729691702783,5.24791705,2581.9,2581.8,41.18757]
[1729691702985,4.86035705,2581.9,2581.8,41.18757]
[1729691704596,4.86035705,2581.9,2581.8,0.38757]
[1729691705093,4.86035705,2581.9,2581.8,41.18757]
[1729691707088,4.39825705,2581.9,2581.8,41.18757]
[1729691707697,3.2078,2582.2,2582.1,0.38753]
[1729691707893,0.4373,2582.3,2581.9,0.96889]
[1729691708104,0.4373,2582.3,2582.2,0.38751]
[1729691708390,4.79875488,2582.3,2582.2,41.18751]
[1729691709491,5.18625488,2582.3,2582.2,41.18751]
[1729691709694,5.18625488,2582.3,2581.7,0.96896]
[1729691709695,11.87935488,2582.3,2581.7,0.96896]
[1729691709994,11.87935488,2582.3,2581.9,0.38755]
[1729691709995,0.38756,2582.0,2581.9,0.38755]
[1729691710397,4.62595307,2582.0,2581.9,0.38755]
[1729691710900,4.23839307,2582.0,2581.9,0.38755]
[1729691711290,0.4373,2582.3,2582.2,0.38751]
[1729691711699,5.02893433,2582.3,2582.2,0.38751]
[1729691711890,4.20413433,2582.3,2582.2,7.29031]
[1729691712195,3.64,2582.6,2582.5,0.38747]
[1729691712196,3.2078,2582.6,2582.5,0.38747]
[1729691712592,7.6542532,2582.6,2582.5,0.38747]
[1729691712795,4.4464532,2582.6,2582.5,0.38747]
[1729691715303,3.03,2583.3,2582.5,6.902]
[1729691715597,0.83487,2583.2,2583.1,0.38737]
[1729691716000,5.07371243,2583.2,2583.1,0.38737]
[1729691716396,4.68634243,2583.2,2582.8,0.96856]
[1729691716799,3.41738,2583.1,2583.0,0.38738]
[1729691717193,3.41738,2583.1,2582.6,1.40324]
[1729691717194,7.440124,2583.1,2582.6,1.40324]
[1729691717402,0.38739,2583.0,2582.9,0.3874]
[1729691717602,10.647924,2583.1,2582.8,0.38741]
[1729691717603,0.38741,2582.9,2582.8,0.38741]
[1729691717796,10.647924,2583.1,2582.7,0.38744]
[1729691717797,3.03,2582.8,2582.7,0.38744]
[1729691718206,7.32958875,2582.8,2582.7,0.38744]
[1729691719004,7.77958875,2582.8,2582.7,0.38744]
[1729691722316,4.29958875,2582.8,2582.7,0.38744]
[1729691722700,4.47905579,2582.9,2582.8,0.38742]
[1729691723010,3.6387,2583.1,2583.0,0.38739]
[1729691723301,7.68685579,2583.1,2583.0,0.38739]
[1729691723507,4.47905579,2583.1,2583.0,0.38739]
[1729691725704,4.47905579,2583.1,2583.0,41.18739]
[1729691726718,1.9837558,2583.1,2583.0,48.26639]
[1729691727007,3.6387,2583.5,2583.4,0.38733]
[1729691727008,3.2078,2583.5,2583.4,0.38733]
[1729691729909,6.2378,2583.5,2583.4,0.38733]
[1729691730704,10.65451588,2583.5,2583.4,0.38733]
[1729691731206,14.91223588,2583.5,2583.4,0.38733]
[1729691731405,10.65451588,2583.5,2583.4,0.38733]
[1729691731615,7.62451588,2583.5,2583.4,0.38733]
[1729691732407,8.01183588,2583.5,2583.4,0.38733]
[1729691732622,11.04183588,2583.5,2583.4,0.38733]
[1729691733522,7.83403588,2583.5,2583.4,0.38733]
[1729691734920,4.41671588,2583.5,2583.4,0.38733]
[1729691735421,4.32696321,2583.6,2583.5,0.38732]
[1729691735610,7.07039,2583.7,2583.6,0.3873]
[1729691735810,6.6831,2583.7,2583.6,0.3873]
[1729691736013,10.77099431,2583.7,2583.6,0.3873]
[1729691736210,11.15828431,2583.7,2583.6,0.3873]
[1729691736411,10.77099431,2583.7,2583.6,0.3873]
[1729691736611,11.15828431,2583.7,2583.6,0.3873]
[1729691737016,10.77099431,2583.7,2583.6,0.3873]
[1729691737620,7.74099431,2583.7,2583.6,0.3873]
[1729691738727,7.74099431,2583.7,2583.6,4.2577]
[1729691738728,3.2078,2583.7,2583.6,4.2577]
[1729691738914,3.6684,2584.0,2583.9,0.38726]
[1729691739118,3.2078,2584.0,2583.9,0.38726]
[1729691741523,3.2078,2584.4,2583.9,7.3846]
[1729691741717,3.2078,2584.4,2584.3,0.3872]
[1729691742920,0.4701,2584.6,2584.5,0.38717]
[1729691743323,4.92184459,2584.6,2584.5,0.38717]
[1729691745222,4.92184459,2584.6,2584.2,40.8]
[1729691745428,0.38719,2584.4,2584.3,0.38718]
[1729691745823,4.51603866,2584.4,2584.3,0.38718]
[1729691746427,4.98133866,2584.4,2584.3,0.38718]
[1729691747234,4.59414866,2584.4,2584.3,0.38718]
[1729691747936,4.12884866,2584.4,2584.3,7.28678]
[1729691748140,0.4701,2584.6,2584.5,0.38717]
[1729691748637,4.73440695,2584.6,2584.5,0.38717]
[1729691750034,4.26430695,2584.6,2584.5,0.38717]
[1729691762554,4.49797232,2584.7,2584.6,0.38715]
[1729691763055,0.38715,2584.7,2584.6,0.38715]
[1729691763251,4.65751762,2584.7,2584.6,0.38715]
[1729691763452,4.27036762,2584.7,2584.2,0.4618]
[1729691763658,0.38718,2584.5,2584.4,0.38716]
[1729691763962,0.38718,2584.5,2584.2,0.38721]
[1729691763963,0.38722,2584.3,2584.2,0.38721]
[1729691764257,4.45237493,2584.3,2583.9,40.8]
[1729691764448,4.45237493,2584.3,2584.2,0.38721]
[1729691764755,6.23836493,2584.4,2584.3,0.3872]
[1729691764967,1.78599,2584.4,2584.3,0.3872]
[1729691765148,6.16299168,2584.4,2584.3,0.3872]
[1729691766448,12.85320168,2584.4,2584.0,0.9681]
[1729691766652,12.85320168,2584.4,2584.2,0.3872]
[1729691766653,0.38721,2584.3,2584.2,0.3872]
[1729691766953,4.62408144,2584.3,2584.2,0.38721]
[1729691767756,4.23688144,2584.3,2584.2,0.38721]
[1729691767958,3.2078,2584.7,2584.6,0.38715]
[1729691768357,7.84943035,2584.7,2584.6,0.38715]
[1729691768556,7.46229035,2584.7,2584.6,0.38715]
[1729691769163,7.84943035,2584.7,2584.6,0.38715]
[1729691770058,7.46229035,2584.7,2584.6,0.38715]
[1729691771363,7.84943035,2584.7,2584.6,0.38715]
[1729691772047,11.33109035,2584.7,2584.1,1.44545]
[1729691772251,11.33109035,2584.7,2584.4,0.38717]
[1729691772252,0.38718,2584.5,2584.4,0.38717]
[1729691772652,4.49094895,2584.5,2584.4,0.38717]
[1729691772853,4.94644895,2584.5,2584.4,0.38717]
[1729691773653,4.55926895,2584.5,2584.1,1.44545]
[1729691773852,0.3872,2584.4,2584.3,0.38719]
[1729691774055,7.20577,2584.4,2583.9,41.76812]
[1729691774262,0.86771,2584.3,2584.2,0.3872]
[1729691774762,5.04052634,2584.3,2584.2,0.3872]
[1729691778961,4.65331634,2584.3,2584.2,0.3872]
[1729691780065,0.38724,2584.1,2583.9,40.8]
[1729691780264,0.86454,2584.0,2583.9,40.8]
[1729691780461,5.15991315,2584.0,2583.9,41.18726]
[1729691780654,5.65681315,2584.0,2583.9,41.18726]
[1729691780859,5.26957315,2584.0,2583.9,41.18726]
[1729691781163,4.77267315,2584.0,2583.9,0.38726]
[1729691783464,5.15991315,2584.0,2583.9,0.38726]
[1729691783663,4.77267315,2584.0,2583.9,0.38726]
[1729691784865,4.29537315,2584.0,2583.9,3.41726]
[1729691785064,4.29537315,2584.0,2583.9,0.38726]
[1729691785561,4.68261315,2584.0,2583.9,0.38726]
[1729691785958,4.29537315,2584.0,2583.9,0.38726]
[1729691786567,4.29537315,2584.0,2583.9,3.41726]
[1729691787163,4.29537315,2584.0,2583.9,7.28766]
[1729691787363,3.2078,2584.1,2584.0,0.38724]
[1729691787761,3.2078,2584.1,2584.0,3.87234]
[1729691788065,0.9661,2584.3,2584.0,3.4851]
[1729691788268,3.2078,2584.7,2584.6,0.38715]
[1729691788772,7.5552493,2584.7,2584.6,0.38715]
[1729691789767,7.9423893,2584.7,2584.6,0.38715]
[1729691789974,7.9423893,2584.7,2584.2,3.2078]
[1729691789975,11.4240493,2584.7,2584.2,3.2078]
[1729691790167,0.38719,2584.4,2584.3,0.38719]
[1729691790471,4.50979129,2584.4,2584.3,0.38719]
[1729691791258,4.12260129,2584.4,2584.3,0.38719]
[1729691791672,0.38719,2584.4,2584.3,0.38719]
[1729691792173,4.65703576,2584.4,2584.3,0.38719]
[1729691792570,4.65703576,2584.4,2584.1,0.94]
[1729691792571,0.38721,2584.2,2584.1,0.86462]
[1729691792767,0.90561,2584.3,2584.2,0.38721]
[1729691793070,5.0599729,2584.3,2584.2,0.38721]
[1729691794468,4.6727729,2584.3,2584.2,0.38721]
[1729691795872,5.0599729,2584.3,2584.2,0.38721]
[1729691796068,4.1543729,2584.3,2584.2,3.41721]
[1729691796468,4.1543729,2584.3,2584.2,0.38721]
[1729691798068,0.38721,2584.2,2584.1,0.8646]
[1729691798268,0.38721,2584.3,2584.2,0.3872]
[1729691798775,4.49145158,2584.3,2584.2,0.3872]
[1729691800172,4.10424158,2584.3,2584.2,0.3872]
[1729691800575,7.63523736,2584.4,2584.3,0.3872]
[1729691800776,3.59499,2584.4,2584.3,0.3872]
[1729691801170,7.85786415,2584.4,2584.3,0.3872]
[1729691804366,7.85786415,2584.4,2584.1,0.4774]
[1729691804367,7.47067415,2584.4,2584.1,0.4774]
[1729691804572,0.38721,2584.2,2584.1,0.38721]
[1729691805183,0.38725,2584.0,2583.9,0.38724]
[1729691805479,4.82201015,2584.0,2583.9,0.38724]
[1729691805872,4.43476015,2584.0,2583.9,0.38724]
[1729691807177,4.82200015,2584.0,2583.9,0.38724]
[1729691808079,4.43476015,2584.0,2583.9,0.38724]
[1729691808477,4.82200015,2584.0,2583.9,0.38724]
[1729691811278,4.82200015,2584.0,2583.8,40.8]
[1729691811279,0.38726,2583.9,2583.8,40.8]
[1729691811481,0.38727,2583.8,2583.7,3.59508]
[1729691811782,4.70304149,2583.8,2583.7,0.38728]
[1729691811982,4.70304149,2583.8,2583.7,41.18728]
[1729691812681,4.31577149,2583.8,2583.7,41.18728]
[1729691813079,4.82995709,2583.9,2583.8,0.38727]
[1729691813278,0.89445,2584.0,2583.7,40.8]
[1729691813582,0.89445,2584.0,2583.9,0.38726]
[1729691813980,4.85665165,2584.0,2583.9,0.38726]
[1729691814181,4.34945165,2584.0,2583.9,0.38726]
[1729691814976,3.2078,2584.1,2584.0,0.38724]
[1729691815178,3.2078,2584.1,2584.0,3.41724]
[1729691815476,0.9847,2584.5,2584.0,3.41724]
[1729691815477,0.9847,2584.5,2584.4,0.38718]
[1729691815780,5.30637169,2584.5,2584.4,0.38718]
[1729691817486,4.79317169,2584.5,2584.4,0.38718]
[1729691820580,4.32167169,2584.5,2584.4,0.38718]
[1729691821083,3.7075,2584.7,2584.6,0.38715]
[1729691821084,3.2078,2584.7,2584.6,0.38715]
[1729691821288,3.59494,2584.7,2584.6,0.38715]
[1729691821483,7.81514164,2584.7,2584.6,0.38715]
[1729691821785,7.42800164,2584.7,2584.6,0.38715]
[1729691821975,7.81514164,2584.7,2584.6,0.38715]
[1729691822881,7.81514164,2584.7,2584.5,0.4987]
[1729691822882,7.42800164,2584.7,2584.5,0.4987]
[1729691823084,7.81514164,2584.7,2584.6,0.38715]
[1729691823785,7.42800164,2584.7,2584.6,0.38715]
[1729691824177,7.81514164,2584.7,2584.6,0.38715]
[1729691824583,7.42800164,2584.7,2584.6,0.38715]
[1729691824783,4.22020164,2584.7,2584.6,0.38715]
[1729691825088,0.38713,2584.8,2584.5,0.4987]
[1729691825089,4.81361126,2584.8,2584.5,0.4987]
[1729691825286,4.42648126,2584.8,2584.7,0.38714]
[1729691825487,0.38712,2584.8,2584.7,0.38714]
[1729691825788,4.81360126,2584.8,2584.7,0.38714]
[1729691826088,4.42648126,2584.8,2584.7,0.38714]
[1729691826382,0.90161,2584.9,2584.8,0.38712]
[1729691827093,0.90161,2584.9,2584.8,41.18712]
[1729691828385,0.5145,2584.9,2584.8,41.18712]
[1729691828698,3.7273,2585.0,2584.9,0.38711]
[1729691828993,8.20281338,2585.0,2584.9,0.38711]
[1729691829196,7.68331338,2585.0,2584.9,0.92201]
[1729691829689,0.38714,2584.7,2584.6,0.38714]
[1729691829882,0.38714,2584.8,2584.7,0.38713]
[1729691830297,0.38714,2584.8,2584.7,41.18713]
[1729691831186,8.07041338,2585.0,2584.9,0.38711]
[1729691831393,7.68331338,2585.0,2584.7,40.8]
[1729691831892,0.38712,2584.9,2584.8,0.38712]
[1729691832293,0.38712,2584.8,2584.7,40.8]
[1729691832498,0.38712,2584.8,2584.4,0.5349]
[1729691832499,0.38716,2584.6,2584.5,0.38716]
[1729691832692,4.1819,2584.7,2584.2,0.5313]
[1729691832905,0.38719,2584.4,2584.3,41.18718]
[1729691833196,0.38719,2584.4,2584.3,40.8]
[1729691833495,0.38719,2584.4,2583.8,3.2078]
[1729691833496,0.38723,2584.2,2584.1,0.38722]
[1729691833884,0.38723,2584.2,2584.1,41.18722]
[1729691834096,4.65498822,2584.2,2584.1,41.18722]
[1729691834993,4.26775822,2584.2,2584.1,41.18722]
[1729691835498,4.65496822,2584.2,2584.1,41.18722]
[1729691835696,4.26775822,2584.2,2583.9,0.5247]
[1729691835994,4.26775822,2584.2,2584.0,0.38724]
[1729691835995,0.38724,2584.1,2584.0,0.38724]
[1729691836399,4.79985772,2584.1,2584.0,0.38724]
[1729691836603,4.79984772,2584.1,2584.0,0.38724]
[1729691837193,4.79984772,2584.1,2583.9,41.3247]
[1729691837397,4.79984772,2584.1,2584.0,0.38724]
[1729691837695,0.38724,2584.0,2583.9,41.18724]
[1729691838199,4.48987951,2584.0,2583.9,41.18724]
[1729691838799,4.48987951,2584.0,2583.9,40.8]
[1729691839503,4.48987951,2584.0,2583.6,0.3873]
[1729691839504,5.07075951,2584.0,2583.6,0.3873]
[1729691839704,0.38728,2583.8,2583.7,0.38727]
[1729691840108,5.04037547,2583.8,2583.7,41.18727]
[1729691840590,5.04037547,2583.8,2583.7,40.8]
[1729691841097,5.04037547,2583.8,2583.7,41.18729]
[1729691842391,5.04037547,2583.8,2583.7,40.8]
[1729691843396,8.91077547,2583.8,2583.7,40.8]
[1729691843691,8.91077547,2583.8,2583.4,0.38733]
[1729691843692,0.38732,2583.5,2583.4,0.38733]
[1729691843889,0.38734,2583.4,2583.3,0.38734]
[1729691844201,0.88203,2583.4,2583.3,41.18734]
[1729691844400,0.88203,2583.4,2583.3,40.8]
[1729691844600,11.47127024,2583.4,2582.8,3.2078]
[1729691844903,0.38741,2582.9,2582.8,3.59522]
[1729691845200,4.68895231,2582.9,2582.8,3.59522]
[1729691845394,4.68895231,2582.9,2582.8,3.2078]
[1729691845594,4.68895231,2582.9,2582.6,0.5315]
[1729691845595,0.38745,2582.7,2582.6,0.38745]
[1729691845799,0.38745,2582.7,2582.5,3.2078]
[1729691846004,0.38745,2582.6,2582.5,3.2078]
[1729691846401,4.8210582,2582.6,2582.5,3.2078]
[1729691846700,4.8210582,2582.6,2582.5,44.0078]
[1729691847098,8.6930582,2582.6,2582.5,40.8]
[1729691847603,8.6930582,2582.6,2582.2,3.2078]
[1729691847604,0.38749,2582.4,2582.2,3.2078]
[1729691847812,0.3875,2582.3,2582.2,3.2078]
[1729691848003,0.3875,2582.3,2582.2,44.0078]
[1729691848004,4.74815697,2582.3,2582.2,44.0078]
[1729691848304,4.36065697,2582.3,2582.2,44.0078]
[1729691848804,0.3875,2582.3,2582.2,44.0078]
[1729691848994,4.81199537,2582.3,2582.2,44.0078]
[1729691849201,0.3875,2582.3,2582.2,44.0078]
[1729691849501,4.74512731,2582.3,2582.2,44.0078]
[1729691849706,4.74512731,2582.3,2581.8,3.2078]
[1729691849707,0.38754,2582.0,2581.8,3.2078]
[1729691849905,3.03,2582.2,2581.8,3.2078]
[1729691850095,0.38756,2581.9,2581.8,3.2078]
[1729691850299,0.38756,2581.9,2581.8,44.0078]
[1729691852409,0.38755,2582.0,2581.8,44.0078]
[1729691852605,5.55704572,2582.1,2581.8,44.0078]
[1729691852606,0.38756,2581.9,2581.8,44.0078]
[1729691856498,5.40228572,2582.1,2581.8,44.39537]
[1729691857005,5.01474572,2582.1,2581.8,44.0078]
[1729691857201,0.38755,2582.0,2581.8,44.0078]
[1729691858015,0.38755,2582.0,2581.8,44.39537]
[1729691858214,0.38756,2581.9,2581.8,44.0078]
[1729691858607,3.41756,2581.9,2581.8,40.8]
[1729691858809,11.64705215,2581.9,2581.8,40.8]
[1729691859615,11.25949215,2581.9,2581.2,1.5397]
[1729691859807,0.38763,2581.5,2581.2,1.5397]
[1729691860003,3.03,2581.7,2581.2,1.5397]
[1729691860004,0.38763,2581.4,2581.2,1.5397]
[1729691860206,0.38763,2581.5,2581.3,40.8]
[1729691860606,0.38762,2581.5,2581.3,40.8]
[1729691861006,0.38763,2581.4,2581.3,40.8]
[1729691861408,0.38763,2581.4,2581.3,44.6736]
[1729691861812,7.92595463,2581.6,2581.3,44.6736]
[1729691861813,0.38763,2581.5,2581.3,44.6736]
[1729691862012,0.38763,2581.5,2581.3,40.8]
[1729691862206,0.38763,2581.4,2581.3,40.8]
[1729691862706,0.38763,2581.4,2581.3,44.6736]
[1729691862907,0.38763,2581.4,2581.3,40.8]
[1729691863112,4.42038869,2581.4,2581.3,40.8]
[1729691863411,4.42038869,2581.4,2580.9,0.3877]
[1729691863412,0.38769,2581.0,2580.9,0.5]
[1729691863616,4.17694,2581.3,2580.9,1.0154]
[1729691863812,6.2378,2581.3,2581.0,40.8]
[1729691864009,0.38769,2581.1,2581.0,40.8]
[1729691864405,4.56287339,2581.1,2581.0,40.8]
[1729691868315,4.56286339,2581.1,2581.0,41.18769]
[1729691868623,4.56286339,2581.1,2581.0,40.8]
[1729691869314,4.17518339,2581.1,2581.0,40.8]
[1729691869512,3.7048,2581.3,2581.0,40.8]
[1729691869513,3.2078,2581.3,2581.0,44.6744]
[1729691869717,3.2078,2581.3,2581.0,40.8]
[1729691870011,3.59545,2581.3,2581.2,0.38766]
[1729691870513,3.2078,2581.3,2581.0,40.8]
[1729691870716,3.59545,2581.3,2581.2,0.38766]
[1729691871515,3.527,2581.5,2581.0,40.8]
[1729691871715,0.38765,2581.3,2581.2,0.38766]
[1729691871908,0.38767,2581.2,2581.1,0.38767]
[1729691873116,0.38768,2581.1,2581.0,41.18769]
[1729691873419,0.69278066,2581.1,2581.0,40.8]
[1729691874809,5.45260753,2581.1,2581.0,40.8]
[1729691875723,5.45260753,2581.1,2581.0,41.18769]
[1729691877317,4.23532687,2581.1,2581.0,48.09209]
[1729691877627,3.59546,2581.3,2581.2,0.38766]
[1729691877922,3.59545,2581.3,2581.2,0.38766]
[1729691878316,3.2078,2581.3,2581.2,0.38766]
[1729691878516,1.0578,2581.6,2581.5,0.38762]
[1729691878711,1.44541,2581.6,2581.5,0.38762]
[1729691878917,5.63798806,2581.6,2581.5,0.38762]
[1729691879824,5.25037806,2581.6,2581.5,0.38762]
[1729691880225,5.63797806,2581.6,2581.5,0.38762]
[1729691880929,5.25037806,2581.6,2581.5,0.38762]
[1729691881323,5.63797806,2581.6,2581.5,0.38762]
[1729691882922,5.25037806,2581.6,2581.5,0.38762]
[1729691883120,0.38759,2581.7,2581.6,0.3876]
[1729691883326,0.38761,2581.6,2581.5,0.38761]
[1729691884226,4.62775644,2581.7,2581.6,0.3876]
[1729691885623,4.24015644,2581.7,2581.6,0.3876]
[1729691885833,3.59536,2582.0,2581.9,0.38756]
[1729691886027,0.38754,2582.1,2582.0,0.38754]
[1729691886532,0.38754,2582.1,2581.7,1.04]
[1729691886533,0.38755,2582.0,2581.9,0.38755]
[1729691887033,4.80664726,2582.0,2581.9,0.38755]
[1729691888226,4.41909726,2582.0,2581.9,0.38755]
[1729691888429,4.80663726,2582.0,2581.9,0.38755]
[1729691888632,0.38754,2582.0,2581.9,0.38755]
[1729691888835,4.55829582,2582.0,2581.9,0.38755]
[1729691889034,7.58830582,2582.0,2581.9,0.38756]
[1729691889437,0.38756,2581.9,2581.8,0.38756]
[1729691889936,0.91566,2581.9,2581.8,0.38756]
[1729691890832,0.38759,2581.7,2581.6,0.3876]
[1729691891140,0.3876,2581.6,2581.5,0.38761]
[1729691891639,0.38763,2581.5,2581.4,0.38762]
[1729691891837,4.17678,2581.7,2581.2,2.54446]
[1729691891838,3.5954,2581.7,2581.2,2.54446]
[1729691892139,3.5954,2581.7,2581.6,0.3876]
[1729691894442,11.06811178,2581.7,2581.6,0.3876]
[1729691894640,14.94171178,2581.7,2581.6,0.3876]
[1729691894842,14.55411178,2581.7,2581.2,1.5753]
[1729691895036,3.41764,2581.5,2581.4,0.38763]
[1729691895436,7.89300063,2581.5,2581.4,0.38763]
[1729691895742,4.86300063,2581.5,2581.4,0.38763]
[1729691896539,7.89300063,2581.5,2581.4,0.38763]
[1729691897043,4.47536063,2581.5,2581.4,0.38763]
[1729691897341,4.82726378,2581.6,2581.5,0.38762]
[1729691897649,0.3876,2581.6,2581.5,0.38762]
[1729691897935,4.43966378,2581.6,2581.5,0.38762]
[1729691898942,3.2078,2581.7,2581.3,0.96912]
[1729691899141,3.2078,2581.7,2581.6,0.3876]
[1729691899338,0.5094,2581.8,2581.7,0.38759]
[1729691899643,4.85403563,2581.8,2581.7,0.38759]
[1729691900841,4.34463563,2581.8,2581.7,0.38759]
[1729691902037,0.5477,2582.1,2582.0,0.38754]
[1729691902548,5.15732838,2582.1,2582.0,0.38754]
[1729691903049,4.76979838,2582.1,2582.0,0.38754]
[1729691903841,5.15732838,2582.1,2582.0,0.38754]
[1729691904544,4.76979838,2582.1,2582.0,0.38754]
[1729691910852,4.22209838,2582.1,2582.0,4.26034]
[1729691911052,0.5066,2582.5,2582.4,0.38748]
[1729691911247,3.2078,2582.8,2582.7,0.38744]
[1729691911444,3.2078,2582.8,2582.7,41.18744]
[1729691911645,1.5347,2583.3,2582.9,0.96851]
[1729691911945,1.41985,2583.3,2582.9,0.96851]
[1729691912258,1.41985,2583.3,2583.2,0.38736]
[1729691912554,4.45377069,2583.2,2582.8,0.96857]
[1729691912854,1.0325,2583.3,2583.2,0.38736]
[1729691913254,5.50203004,2583.3,2583.2,0.38736]
[1729691914147,0.38731,2583.6,2583.5,0.38731]
[1729691914353,0.89641,2583.6,2583.5,0.38731]
[1729691914548,5.04409869,2583.6,2583.5,0.38731]
[1729691914748,4.65678869,2583.6,2583.5,0.38731]
[1729691916060,3.2078,2584.0,2583.5,7.0782]
[1729691916247,3.2078,2584.0,2583.9,0.38726]
[1729691916555,7.15794328,2584.0,2583.9,0.38726]
[1729691919157,3.95014328,2584.0,2583.9,0.38726]
[1729691919464,4.26968852,2584.1,2583.6,2.02483]
[1729691919665,4.26968852,2584.1,2584.0,0.38724]
[1729691919965,4.26968852,2584.1,2583.6,2.02483]
[1729691919966,0.5091,2584.2,2584.1,0.38723]
[1729691920156,0.89631,2584.2,2584.1,0.38723]
[1729691920356,8.43649668,2584.2,2584.1,0.38723]
[1729691920557,8.43649668,2584.2,2584.0,0.38723]
[1729691920558,4.95410668,2584.2,2584.0,0.38723]
[1729691920858,3.03,2584.1,2584.0,0.38723]
[1729691921360,7.19508158,2584.1,2584.0,0.38723]
[1729691921755,7.58231158,2584.1,2584.0,0.38723]
[1729691921956,7.58231158,2584.1,2583.8,3.2078]
[1729691922170,7.58231158,2584.1,2583.9,0.38725]
[1729691922551,7.19508158,2584.1,2583.9,0.38725]